Workbook

Sheet info
A1: f1 és f2 eredményeiből a szükséges rétegek átemelése manuálisan önellenőrzési céllal B*-ra | B1: inkl. kátyasorrend
A3: f3 = sebesség-becslés
A4: f4 = idealitás modell
A5: CTRL+SHIFT+G
A6: minden a* előtt bezárás, újra-indítás

Sheet a1_f4
A1: element | B1: Y hiba 1 | C1: x hiba 1 | D1: y hiba 2 | E1: x hiba 2 | F1: Megtett út/ Időigény | G1: Kártyasorrend
A2: COLOR_GREEN-DOT_2 | B2: 27.03996826 | C2: 1049.761582 | D2: 153.758335 | E2: 2116 | F2: 0.9143080123 | G2: COLOR_BROWN-DOT_1
A3: COLOR_BROWN-DOT_2 | B3: 46.2400415 | C3: 100 | D3: 4 | E3: 174.2395166 | F3: 1.384877183 | G3: COLOR_BLUE-DOT_1
A4: COLOR_GREEN-DOT_1 | B4: 998.5603857 | C4: 595.3611914 | D4: 1156 | E4: 718.2409814 | F4: 1.392545168 | G4: COLOR_GREEN-DOT_1
A5: COLOR_BROWN-DOT_1 | B5: 174.2395166 | C5: 134.5594336 | D5: 12.96004395 | E5: 134.5601416 | F5: 1.49945692 | G5: COLOR_GREEN-DOT_2
A6: COLOR_BLUE-DOT_3 | B6: 84.64022461 | C6: 3180.962754 | D6: 213.1610693 | E6: 4382.441616 | F6: 1.38832053 | G6: COLOR_GREEN-DOT_3
A7: COLOR_GREEN-DOT_3 | B7: 998.5603857 | C7: 1.440175787 | D7: 595.3597021 | E7: 424.3589941 | F7: 1.328245605 | G7: COLOR_BLUE-DOT_2
A8: COLOR_BLUE-DOT_1 | B8: 484 | C8: 1831.838955 | D8: 201.6403467 | E8: 4251.041592 | F8: 1.27028917 | G8: COLOR_BLUE-DOT_3
A9: COLOR_BLUE-DOT_2 | B9: 1.440029297 | C9: 324 | D9: 0.3599707037 | E9: 0.1599951172 | F9: 2.486455657 | G9: COLOR_BROWN-DOT_2
A10: COLOR_BROWN-DOT_3 | B10: 12.95982422 | C10: 4044.956895 | D10: 676 | E10: 961 | F10: 1.652223585 | G10: COLOR_BROWN-DOT_3
A12: sorszámozás | B12: =B1 -> Y hiba 1 | C12: x hiba 1 | D12: y hiba 2 | E12: x hiba 2 | F12: Sebesség | G12: Y0
A13: =A2 -> COLOR_GREEN-DOT_2 | B13: =RANK(B2,B$2:B$10,1) -> 3 | C13: =RANK(C2,C$2:C$10,1) -> 6 | D13: 4 | E13: 7 | F13: =RANK(F2,F$2:F$10,0) -> 9 | G13: 1000
A14: COLOR_BROWN-DOT_2 | B14: =RANK(B3,B$2:B$10,1) -> 4 | C14: 2 | D14: 2 | E14: 3 | F14: =RANK(F3,F$2:F$10,0) -> 6 | G14: 1000
A15: COLOR_GREEN-DOT_1 | B15: 8 | C15: 5 | D15: 9 | E15: 5 | F15: 4 | G15: 1000
A16: COLOR_BROWN-DOT_1 | B16: 6 | C16: 3 | D16: 3 | E16: 2 | F16: 3 | G16: 1000
A17: COLOR_BLUE-DOT_3 | B17: 5 | C17: 8 | D17: 6 | E17: 9 | F17: 5 | G17: 1000
A18: COLOR_GREEN-DOT_3 | B18: 8 | C18: 1 | D18: 7 | E18: 4 | F18: 7 | G18: 1000
A19: COLOR_BLUE-DOT_1 | B19: 7 | C19: 7 | D19: 5 | E19: 8 | F19: 8 | G19: 1000
A20: COLOR_BLUE-DOT_2 | B20: 1 | C20: 4 | D20: 1 | E20: 1 | F20: 1 | G20: 1000
A21: COLOR_BROWN-DOT_3 | B21: 2 | C21: 9 | D21: 8 | E21: 6 | F21: 2 | G21: 1000
A23: lépcsők | B23: =B12 -> Y hiba 1 | C23: =C12 -> x hiba 1 | D23: y hiba 2 | E23: x hiba 2 | F23: Sebesség
A24: 1
A25: 2
A26: 3
A27: 4
A28: 5
A29: 6
A30: 7
A31: 8
A32: 9
A33: visszatérés | B33: 2 | C33: 3 | D33: 4 | E33: 5 | F33: 6
A35: lépcsőtávolságok | B35: =B23 -> Y hiba 1 | C35: =C23 -> x hiba 1 | D35: y hiba 2 | E35: x hiba 2 | F35: Sebesség
A36: L1-L2 | B36: =B24-B25 -> 0 | C36: =C24-C25 -> 0 | D36: 0 | E36: 0 | F36: =F24-F25 -> 0
A37: … | B37: =B25-B26 -> 0 | C37: 0 | D37: 0 | E37: 0 | F37: 0
A38: … | B38: 0 | C38: 0 | D38: 0 | E38: 0 | F38: 0
A39: … | B39: 0 | C39: 0 | D39: 0 | E39: 0 | F39: 0
A40: … | B40: 0 | C40: 0 | D40: 0 | E40: 0 | F40: 0
A41: … | B41: 0 | C41: 0 | D41: 0 | E41: 0 | F41: 0
A42: … | B42: 0 | C42: 0 | D42: 0 | E42: 0 | F42: 0
A43: L8-L9 | B43: 0 | C43: 0 | D43: 0 | E43: 0 | F43: 0 | I43: négyzetes hiba
I44: =SUMSQ(I46:I54) -> 9000000
A45: becslés | B45: =B12 -> Y hiba 1 | C45: =C12 -> x hiba 1 | D45: y hiba 2 | E45: x hiba 2 | F45: Sebesség | G45: Y0 | H45: Becslés | I45: hiba | J45: =G1 -> Kártyasorrend | K45: Sebesség-becslés
A46: =A13 -> COLOR_GREEN-DOT_2 | B46: =VLOOKUP(B13,$A$24:$F$32,B$33,0) -> 0 | C46: =VLOOKUP(C13,$A$24:$F$32,C$33,0) -> 0 | D46: 0 | E46: 0 | F46: 0 | G46: =G13 -> 1000 | H46: =SUM(B46:F46) -> 0 | I46: =G46-H46 -> 1000 | J46: =G2 -> COLOR_BROWN-DOT_1 | K46: =VLOOKUP(J46,$A$46:$I$54,8,0) -> 0
A47: =A14 -> COLOR_BROWN-DOT_2 | B47: =VLOOKUP(B14,$A$24:$F$32,B$33,0) -> 0 | C47: 0 | D47: 0 | E47: 0 | F47: 0 | G47: =G14 -> 1000 | H47: =SUM(B47:F47) -> 0 | I47: =G47-H47 -> 1000 | J47: COLOR_BLUE-DOT_1 | K47: =VLOOKUP(J47,$A$46:$I$54,8,0) -> 0
A48: COLOR_GREEN-DOT_1 | B48: =VLOOKUP(B15,$A$24:$F$32,B$33,0) -> 0 | C48: 0 | D48: 0 | E48: 0 | F48: 0 | G48: =G15 -> 1000 | H48: 0 | I48: 1000 | J48: COLOR_GREEN-DOT_1 | K48: 0
A49: COLOR_BROWN-DOT_1 | B49: =VLOOKUP(B16,$A$24:$F$32,B$33,0) -> 0 | C49: 0 | D49: 0 | E49: 0 | F49: 0 | G49: =G16 -> 1000 | H49: 0 | I49: 1000 | J49: COLOR_GREEN-DOT_2 | K49: 0
A50: COLOR_BLUE-DOT_3 | B50: =VLOOKUP(B17,$A$24:$F$32,B$33,0) -> 0 | C50: 0 | D50: 0 | E50: 0 | F50: 0 | G50: =G17 -> 1000 | H50: 0 | I50: 1000 | J50: COLOR_GREEN-DOT_3 | K50: 0
A51: COLOR_GREEN-DOT_3 | B51: =VLOOKUP(B18,$A$24:$F$32,B$33,0) -> 0 | C51: 0 | D51: 0 | E51: 0 | F51: 0 | G51: =G18 -> 1000 | H51: 0 | I51: 1000 | J51: COLOR_BLUE-DOT_2 | K51: 0
A52: COLOR_BLUE-DOT_1 | B52: =VLOOKUP(B19,$A$24:$F$32,B$33,0) -> 0 | C52: 0 | D52: 0 | E52: 0 | F52: 0 | G52: =G19 -> 1000 | H52: 0 | I52: 1000 | J52: COLOR_BLUE-DOT_3 | K52: 0
A53: COLOR_BLUE-DOT_2 | B53: =VLOOKUP(B20,$A$24:$F$32,B$33,0) -> 0 | C53: 0 | D53: 0 | E53: 0 | F53: 0 | G53: =G20 -> 1000 | H53: 0 | I53: 1000 | J53: COLOR_BROWN-DOT_2 | K53: 0
A54: COLOR_BROWN-DOT_3 | B54: =VLOOKUP(B21,$A$24:$F$32,B$33,0) -> 0 | C54: 0 | D54: 0 | E54: 0 | F54: 0 | G54: =G21 -> 1000 | H54: 0 | I54: 1000 | J54: COLOR_BROWN-DOT_3 | K54: 0

Sheet a1_f3
A1: element | B1: Y hiba 1 | C1: x hiba 1 | D1: y hiba 2 | E1: x hiba 2 | F1: Megtett út/ Időigény | G1: Kártyasorrend
A2: COLOR_GREEN-DOT_2 | B2: 27.03996826 | C2: 1049.761582 | D2: 153.758335 | E2: 2116 | F2: 0.9143080123 | G2: COLOR_BROWN-DOT_1
A3: COLOR_BROWN-DOT_2 | B3: 46.2400415 | C3: 100 | D3: 4 | E3: 174.2395166 | F3: 1.384877183 | G3: COLOR_BLUE-DOT_1
A4: COLOR_GREEN-DOT_1 | B4: 998.5603857 | C4: 595.3611914 | D4: 1156 | E4: 718.2409814 | F4: 1.392545168 | G4: COLOR_GREEN-DOT_1
A5: COLOR_BROWN-DOT_1 | B5: 174.2395166 | C5: 134.5594336 | D5: 12.96004395 | E5: 134.5601416 | F5: 1.49945692 | G5: COLOR_GREEN-DOT_2
A6: COLOR_BLUE-DOT_3 | B6: 84.64022461 | C6: 3180.962754 | D6: 213.1610693 | E6: 4382.441616 | F6: 1.38832053 | G6: COLOR_GREEN-DOT_3
A7: COLOR_GREEN-DOT_3 | B7: 998.5603857 | C7: 1.440175787 | D7: 595.3597021 | E7: 424.3589941 | F7: 1.328245605 | G7: COLOR_BLUE-DOT_2
A8: COLOR_BLUE-DOT_1 | B8: 484 | C8: 1831.838955 | D8: 201.6403467 | E8: 4251.041592 | F8: 1.27028917 | G8: COLOR_BLUE-DOT_3
A9: COLOR_BLUE-DOT_2 | B9: 1.440029297 | C9: 324 | D9: 0.3599707037 | E9: 0.1599951172 | F9: 2.486455657 | G9: COLOR_BROWN-DOT_2
A10: COLOR_BROWN-DOT_3 | B10: 12.95982422 | C10: 4044.956895 | D10: 676 | E10: 961 | F10: 1.652223585 | G10: COLOR_BROWN-DOT_3
A12: sorszámozás | B12: =B1 -> Y hiba 1 | C12: x hiba 1 | D12: y hiba 2 | E12: x hiba 2 | F12: Sebesség
A13: =A2 -> COLOR_GREEN-DOT_2 | B13: =RANK(B2,B$2:B$10,1) -> 3 | C13: =RANK(C2,C$2:C$10,1) -> 6 | D13: 4 | E13: 7 | F13: =INT(F2*1000) -> 914
A14: =A3 -> COLOR_BROWN-DOT_2 | B14: =RANK(B3,B$2:B$10,1) -> 4 | C14: 2 | D14: 2 | E14: 3 | F14: =INT(F3*1000) -> 1384
A15: =A4 -> COLOR_GREEN-DOT_1 | B15: =RANK(B4,B$2:B$10,1) -> 8 | C15: 5 | D15: 9 | E15: 5 | F15: 1392
A16: =A5 -> COLOR_BROWN-DOT_1 | B16: =RANK(B5,B$2:B$10,1) -> 6 | C16: 3 | D16: 3 | E16: 2 | F16: 1499
A17: =A6 -> COLOR_BLUE-DOT_3 | B17: =RANK(B6,B$2:B$10,1) -> 5 | C17: 8 | D17: 6 | E17: 9 | F17: 1388
A18: =A7 -> COLOR_GREEN-DOT_3 | B18: =RANK(B7,B$2:B$10,1) -> 8 | C18: 1 | D18: 7 | E18: 4 | F18: 1328
A19: =A8 -> COLOR_BLUE-DOT_1 | B19: =RANK(B8,B$2:B$10,1) -> 7 | C19: 7 | D19: 5 | E19: 8 | F19: 1270
A20: =A9 -> COLOR_BLUE-DOT_2 | B20: =RANK(B9,B$2:B$10,1) -> 1 | C20: 4 | D20: 1 | E20: 1 | F20: 2486
A21: =A10 -> COLOR_BROWN-DOT_3 | B21: =RANK(B10,B$2:B$10,1) -> 2 | C21: 9 | D21: 8 | E21: 6 | F21: 1652
A23: lépcsők | B23: =B12 -> Y hiba 1 | C23: =C12 -> x hiba 1 | D23: y hiba 2 | E23: x hiba 2
A24: 1
A25: 2
A26: 3
A27: 4
A28: 5
A29: 6
A30: 7
A31: 8
A32: 9
A33: visszatérés | B33: 2 | C33: 3 | D33: 4 | E33: 5
A35: lépcsőtávolságok | B35: =B23 -> Y hiba 1 | C35: =C23 -> x hiba 1 | D35: y hiba 2 | E35: x hiba 2
A36: L1-L2 | B36: =B24-B25 -> 0 | C36: =C24-C25 -> 0 | D36: 0 | E36: 0
A37: … | B37: =B25-B26 -> 0 | C37: 0 | D37: 0 | E37: 0
A38: … | B38: =B26-B27 -> 0 | C38: 0 | D38: 0 | E38: 0
A39: … | B39: =B27-B28 -> 0 | C39: 0 | D39: 0 | E39: 0
A40: … | B40: =B28-B29 -> 0 | C40: 0 | D40: 0 | E40: 0
A41: … | B41: =B29-B30 -> 0 | C41: 0 | D41: 0 | E41: 0
A42: … | B42: =B30-B31 -> 0 | C42: 0 | D42: 0 | E42: 0
A43: L8-L9 | B43: =B31-B32 -> 0 | C43: 0 | D43: 0 | E43: 0 | H43: négyzetes hiba
H44: =SUMSQ(H46:H54) -> 21147845
A45: becslés | B45: =B12 -> Y hiba 1 | C45: =C12 -> x hiba 1 | D45: y hiba 2 | E45: x hiba 2 | F45: Sebesség | G45: Becslés | H45: hiba | I45: =G1 -> Kártyasorrend | J45: Sebesség-becslés
A46: =A13 -> COLOR_GREEN-DOT_2 | B46: =VLOOKUP(B13,$A$24:$E$32,B$33,0) -> 0 | C46: =VLOOKUP(C13,$A$24:$E$32,C$33,0) -> 0 | D46: 0 | E46: 0 | F46: =F13 -> 914 | G46: =SUM(B46:E46) -> 0 | H46: =F46-G46 -> 914 | I46: =G2 -> COLOR_BROWN-DOT_1 | J46: =VLOOKUP(I46,$A$46:$H$54,8,0) -> 1499
A47: =A14 -> COLOR_BROWN-DOT_2 | B47: =VLOOKUP(B14,$A$24:$E$32,B$33,0) -> 0 | C47: 0 | D47: 0 | E47: 0 | F47: =F14 -> 1384 | G47: =SUM(B47:E47) -> 0 | H47: =F47-G47 -> 1384 | I47: COLOR_BLUE-DOT_1 | J47: =VLOOKUP(I47,$A$46:$H$54,8,0) -> 1270
A48: COLOR_GREEN-DOT_1 | B48: =VLOOKUP(B15,$A$24:$E$32,B$33,0) -> 0 | C48: 0 | D48: 0 | E48: 0 | F48: =F15 -> 1392 | G48: 0 | H48: 1392 | I48: COLOR_GREEN-DOT_1 | J48: 1392
A49: COLOR_BROWN-DOT_1 | B49: =VLOOKUP(B16,$A$24:$E$32,B$33,0) -> 0 | C49: 0 | D49: 0 | E49: 0 | F49: =F16 -> 1499 | G49: 0 | H49: 1499 | I49: COLOR_GREEN-DOT_2 | J49: 914
A50: COLOR_BLUE-DOT_3 | B50: =VLOOKUP(B17,$A$24:$E$32,B$33,0) -> 0 | C50: 0 | D50: 0 | E50: 0 | F50: =F17 -> 1388 | G50: 0 | H50: 1388 | I50: COLOR_GREEN-DOT_3 | J50: 1328
A51: COLOR_GREEN-DOT_3 | B51: =VLOOKUP(B18,$A$24:$E$32,B$33,0) -> 0 | C51: 0 | D51: 0 | E51: 0 | F51: =F18 -> 1328 | G51: 0 | H51: 1328 | I51: COLOR_BLUE-DOT_2 | J51: 2486
A52: COLOR_BLUE-DOT_1 | B52: =VLOOKUP(B19,$A$24:$E$32,B$33,0) -> 0 | C52: 0 | D52: 0 | E52: 0 | F52: =F19 -> 1270 | G52: 0 | H52: 1270 | I52: COLOR_BLUE-DOT_3 | J52: 1388
A53: COLOR_BLUE-DOT_2 | B53: =VLOOKUP(B20,$A$24:$E$32,B$33,0) -> 0 | C53: 0 | D53: 0 | E53: 0 | F53: =F20 -> 2486 | G53: 0 | H53: 2486 | I53: COLOR_BROWN-DOT_2 | J53: 1384
A54: COLOR_BROWN-DOT_3 | B54: =VLOOKUP(B21,$A$24:$E$32,B$33,0) -> 0 | C54: 0 | D54: 0 | E54: 0 | F54: =F21 -> 1652 | G54: 0 | H54: 1652 | I54: COLOR_BROWN-DOT_3 | J54: 1652

Sheet a2_f3
A1: element | B1: Y hiba 1 | C1: x hiba 1 | D1: y hiba 2 | E1: x hiba 2 | F1: Megtett út/ Időigény | G1: Kártyasorrend
A2: SVK-€01 | B2: 27.03996826 | C2: 268.9587988 | D2: 1521 | E2: 324 | F2: 0.7903971228 | G2: IRL-€02
A3: IRL-€01 | B3: 2043.039724 | C3: 416.1609961 | D3: 81 | E3: 1900.963193 | F3: 0.8259670927 | G3: IRL-€20
A4: SVK-€02 | B4: 1267.360435 | C4: 196 | D4: 3249 | E4: 1324.959556 | F4: 0.3153666141 | G4: IRL-€01
A5: IRL-€02 | B5: 84.64022461 | C5: 3271.841396 | D5: 4761 | E5: 268.9597998 | F5: 0.2850403901 | G5: SVK-€02
A6: SMR-€20 | B6: 519.840835 | C6: 3457.431387 | D6: 289 | E6: 10444.8425 | F6: 0.5279171303 | G6: SVK-€20
A7: SVK-€20 | B7: 4 | C7: 196 | D7: 190.4405054 | E7: 2724.841274 | F7: 0.5858226667 | G7: SMR-€01
A8: SMR-€02 | B8: 686.4406396 | C8: 46.23983398 | D8: 1780.84103 | E8: 2116 | F8: 1.174678842 | G8: SVK-€01
A9: SMR-€01 | B9: 3113.638638 | C9: 484 | D9: 25536.0361 | E9: 1764 | F9: 0.2190635254 | G9: SMR-€02
A10: IRL-€20 | B10: 9 | C10: 1.439882815 | D10: 2894.44197 | E10: 2401 | F10: 0.6457863657 | G10: SMR-€20

Sheet a3_f3
A1: element | B1: Y hiba 1 | C1: x hiba 1 | D1: y hiba 2 | E1: x hiba 2 | F1: Megtett út/ Időigény | G1: Kártyasorrend
A2: COLOR_GREEN-DOT_2 | B2: 484 | C2: 112.3594824 | D2: 1169.638748 | E2: 57.76009277 | F2: 0.5904344061 | G2: COLOR_GREEN-DOT_2
A3: COLOR_BROWN-DOT_2 | B3: 100 | C3: 43.55967774 | D3: 104.0396265 | E3: 219.040542 | F3: 0.8248197994 | G3: COLOR_BROWN-DOT_1
A4: COLOR_GREEN-DOT_1 | B4: 718.2417993 | C4: 43.55967774 | D4: 1489.965183 | E4: 27.03980957 | F4: 0.9575185606 | G4: COLOR_BLUE-DOT_1
A5: COLOR_BROWN-DOT_1 | B5: 4 | C5: 841 | D5: 4.839919434 | E5: 295.8393701 | F5: 0.526137948 | G5: COLOR_BROWN-DOT_2
A6: COLOR_BLUE-DOT_3 | B6: 174.2403223 | C6: 3433.957139 | D6: 81 | E6: 3364 | F6: 0.3814671998 | G6: COLOR_GREEN-DOT_1
A7: COLOR_GREEN-DOT_3 | B7: 1.440029297 | C7: 1089 | D7: 73.96010498 | E7: 519.8394434 | F7: 0.7186091378 | G7: COLOR_BLUE-DOT_3
A8: COLOR_BLUE-DOT_1 | B8: 324 | C8: 262.4403955 | D8: 376.3609473 | E8: 295.8393701 | F8: 0.6793050952 | G8: COLOR_BLUE-DOT_2
A9: COLOR_BLUE-DOT_2 | B9: 196 | C9: 408.0380273 | D9: 772.8393213 | E9: 196 | F9: 1.252626815 | G9: COLOR_GREEN-DOT_3
A10: COLOR_BROWN-DOT_3 | B10: 7.839931641 | C10: 179.5606543 | D10: 4.839919434 | E10: 900 | F10: 0.8751102223 | G10: COLOR_BROWN-DOT_3

Sheet B_f3
A1: element | B1: Y hiba 1 | C1: x hiba 1 | D1: y hiba 2 | E1: x hiba 2 | F1: Megtett út/ Időigény | G1: Kártyasorrend
A2: SVK-€01 | B2: 27.03996826 | C2: 268.9587988 | D2: 1521 | E2: 324 | F2: 0.7903971228 | G2: IRL-€02
A3: IRL-€01 | B3: 2043.039724 | C3: 416.1609961 | D3: 81 | E3: 1900.963193 | F3: 0.8259670927 | G3: IRL-€20
A4: SVK-€02 | B4: 1267.360435 | C4: 196 | D4: 3249 | E4: 1324.959556 | F4: 0.3153666141 | G4: IRL-€01
A5: IRL-€02 | B5: 84.64022461 | C5: 3271.841396 | D5: 4761 | E5: 268.9597998 | F5: 0.2850403901 | G5: SVK-€02
A6: SMR-€20 | B6: 519.840835 | C6: 3457.431387 | D6: 289 | E6: 10444.8425 | F6: 0.5279171303 | G6: SVK-€20
A7: SVK-€20 | B7: 4 | C7: 196 | D7: 190.4405054 | E7: 2724.841274 | F7: 0.5858226667 | G7: SMR-€01
A8: SMR-€02 | B8: 686.4406396 | C8: 46.23983398 | D8: 1780.84103 | E8: 2116 | F8: 1.174678842 | G8: SVK-€01
A9: SMR-€01 | B9: 3113.638638 | C9: 484 | D9: 25536.0361 | E9: 1764 | F9: 0.2190635254 | G9: SMR-€02
A10: IRL-€20 | B10: 9 | C10: 1.439882815 | D10: 2894.44197 | E10: 2401 | F10: 0.6457863657 | G10: SMR-€20
A12: sorszámozás | B12: =B1 -> Y hiba 1 | C12: x hiba 1 | D12: y hiba 2 | E12: x hiba 2 | F12: Sebesség
A13: =A2 -> SVK-€01 | B13: =RANK(B2,B$2:B$10,1) -> 3 | C13: =RANK(C2,C$2:C$10,1) -> 5 | D13: 4 | E13: 2 | F13: =INT(F2*1000) -> 790
A14: IRL-€01 | B14: =RANK(B3,B$2:B$10,1) -> 8 | C14: 6 | D14: 1 | E14: 5 | F14: =INT(F3*1000) -> 825
A15: SVK-€02 | B15: 7 | C15: 3 | D15: 7 | E15: 3 | F15: 315
A16: IRL-€02 | B16: 4 | C16: 8 | D16: 8 | E16: 1 | F16: 285
A17: SMR-€20 | B17: 5 | C17: 9 | D17: 3 | E17: 9 | F17: 527
A18: SVK-€20 | B18: 1 | C18: 3 | D18: 2 | E18: 8 | F18: 585
A19: SMR-€02 | B19: 6 | C19: 2 | D19: 5 | E19: 6 | F19: 1174
A20: SMR-€01 | B20: 9 | C20: 7 | D20: 9 | E20: 4 | F20: 219
A21: IRL-€20 | B21: 2 | C21: 1 | D21: 6 | E21: 7 | F21: 645
A23: lépcsők | B23: =B12 -> Y hiba 1 | C23: =C12 -> x hiba 1 | D23: y hiba 2 | E23: x hiba 2
A24: 1 | B24: 59.44215824 | C24: 427.9999619 | D24: 509.9999693 | E24: 225.557835
A25: 2 | B25: 59.44215824 | C25: 427.9999619 | D25: 488.5578315 | E25: 225.557835
A26: 3 | B26: 59.44215824 | C26: 37.00000206 | D26: 467.9999955 | E26: 219.000006
A27: 4 | B27: 59.44215824 | C27: 37.00000206 | D27: 467.9999955 | E27: 219.000006
A28: 5 | B28: 59.00000658 | C28: 37.00000206 | D28: 467.9999955 | E28: 219.000006
A29: 6 | B29: 59.00000658 | C29: 37.00000206 | D29: 54.16611984 | E29: 219.000006
A30: 7 | B30: 59.00000658 | C30: 0 | D30: 0 | E30: 103.3917649
A31: 8 | B31: 59.00000658 | C31: 0 | D31: 0 | E31: 0
A32: 9 | B32: 0 | C32: 0 | D32: 0 | E32: 0
A33: visszatérés | B33: 2 | C33: 3 | D33: 4 | E33: 5
A35: lépcsőtávolságok | B35: =B23 -> Y hiba 1 | C35: =C23 -> x hiba 1 | D35: y hiba 2 | E35: x hiba 2
A36: L1-L2 | B36: =B24-B25 -> 0 | C36: =C24-C25 -> 0 | D36: 21.44213779 | E36: 0
A37: … | B37: =B25-B26 -> 0 | C37: 390.9999598 | D37: 20.55783608 | E37: 6.55782896
A38: … | B38: 0 | C38: 0 | D38: 0 | E38: 0
A39: … | B39: 0.4421516599 | C39: 0 | D39: 6.252776075e-13 | E39: 0
A40: … | B40: 0 | C40: 0 | D40: 413.8338756 | E40: 0
A41: … | B41: 0 | C41: 37.00000206 | D41: 54.16611984 | E41: 115.6082411
A42: … | B42: 0 | C42: 0 | D42: 0 | E42: 103.3917649
A43: L8-L9 | B43: 59.00000658 | C43: 0 | D43: 0 | E43: 0 | H43: négyzetes hiba
H44: =SUMSQ(H46:H54) -> 1.636187601e-09
A45: becslés | B45: =B12 -> Y hiba 1 | C45: =C12 -> x hiba 1 | D45: y hiba 2 | E45: x hiba 2 | F45: Sebesség | G45: Becslés | H45: hiba | I45: =G1 -> Kártyasorrend | J45: Sebesség-becslés
A46: =A13 -> SVK-€01 | B46: =VLOOKUP(B13,$A$24:$E$32,B$33,0) -> 59.44215824 | C46: =VLOOKUP(C13,$A$24:$E$32,C$33,0) -> 37.00000206 | D46: 467.9999955 | E46: 225.557835 | F46: 790 | G46: =SUM(B46:E46) -> 789.9999908 | H46: =F46-G46 -> 9.242024703e-06 | I46: =G2 -> IRL-€02 | J46: =VLOOKUP(I46,$A$46:$H$54,8,0) -> 6.770160667e-06
A47: =A14 -> IRL-€01 | B47: =VLOOKUP(B14,$A$24:$E$32,B$33,0) -> 59.00000658 | C47: 37.00000206 | D47: 509.9999693 | E47: 219.000006 | F47: 825 | G47: =SUM(B47:E47) -> 824.999984 | H47: =F47-G47 -> 1.598503923e-05 | I47: IRL-€20 | J47: =VLOOKUP(I47,$A$46:$H$54,8,0) -> -4.887655109e-06
A48: SVK-€02 | B48: 59.00000658 | C48: 37.00000206 | D48: 0 | E48: 219.000006 | F48: 315 | G48: 315.0000147 | H48: -1.467293384e-05 | I48: IRL-€01 | J48: 1.598503923e-05
A49: IRL-€02 | B49: 59.44215824 | C49: 0 | D49: 0 | E49: 225.557835 | F49: 285 | G49: 284.9999932 | H49: 6.770160667e-06 | I49: SVK-€02 | J49: -1.467293384e-05
A50: SMR-€20 | B50: 59.00000658 | C50: 0 | D50: 467.9999955 | E50: 0 | F50: 527 | G50: 527.000002 | H50: -2.040806294e-06 | I50: SVK-€20 | J50: 8.150911299e-06
A51: SVK-€20 | B51: 59.44215824 | C51: 37.00000206 | D51: 488.5578315 | E51: 0 | F51: 585 | G51: 584.9999918 | H51: 8.150911299e-06 | I51: SMR-€01 | J51: -6.033285416e-06
A52: SMR-€02 | B52: 59.00000658 | C52: 427.9999619 | D52: 467.9999955 | E52: 219.000006 | F52: 1174 | G52: 1173.99997 | H52: 3.005376993e-05 | I52: SVK-€01 | J52: 9.242024703e-06
A53: SMR-€01 | B53: 0 | C53: 0 | D53: 0 | E53: 219.000006 | F53: 219 | G53: 219.000006 | H53: -6.033285416e-06 | I53: SMR-€02 | J53: 3.005376993e-05
A54: IRL-€20 | B54: 59.44215824 | C54: 427.9999619 | D54: 54.16611984 | E54: 103.3917649 | F54: 645 | G54: 645.0000049 | H54: -4.887655109e-06 | I54: SMR-€20 | J54: -2.040806294e-06

Sheet B_f4
A1: element | B1: Y hiba 1 | C1: x hiba 1 | D1: y hiba 2 | E1: x hiba 2 | F1: Megtett út/ Időigény | G1: Kártyasorrend
A2: COLOR_GREEN-DOT_2 | B2: 484 | C2: 112.3594824 | D2: 1169.638748 | E2: 57.76009277 | F2: 0.5904344061 | G2: COLOR_GREEN-DOT_2
A3: COLOR_BROWN-DOT_2 | B3: 100 | C3: 43.55967774 | D3: 104.0396265 | E3: 219.040542 | F3: 0.8248197994 | G3: COLOR_BROWN-DOT_1
A4: COLOR_GREEN-DOT_1 | B4: 718.2417993 | C4: 43.55967774 | D4: 1489.965183 | E4: 27.03980957 | F4: 0.9575185606 | G4: COLOR_BLUE-DOT_1
A5: COLOR_BROWN-DOT_1 | B5: 4 | C5: 841 | D5: 4.839919434 | E5: 295.8393701 | F5: 0.526137948 | G5: COLOR_BROWN-DOT_2
A6: COLOR_BLUE-DOT_3 | B6: 174.2403223 | C6: 3433.957139 | D6: 81 | E6: 3364 | F6: 0.3814671998 | G6: COLOR_GREEN-DOT_1
A7: COLOR_GREEN-DOT_3 | B7: 1.440029297 | C7: 1089 | D7: 73.96010498 | E7: 519.8394434 | F7: 0.7186091378 | G7: COLOR_BLUE-DOT_3
A8: COLOR_BLUE-DOT_1 | B8: 324 | C8: 262.4403955 | D8: 376.3609473 | E8: 295.8393701 | F8: 0.6793050952 | G8: COLOR_BLUE-DOT_2
A9: COLOR_BLUE-DOT_2 | B9: 196 | C9: 408.0380273 | D9: 772.8393213 | E9: 196 | F9: 1.252626815 | G9: COLOR_GREEN-DOT_3
A10: COLOR_BROWN-DOT_3 | B10: 7.839931641 | C10: 179.5606543 | D10: 4.839919434 | E10: 900 | F10: 0.8751102223 | G10: COLOR_BROWN-DOT_3
A12: sorszámozás | B12: =B1 -> Y hiba 1 | C12: x hiba 1 | D12: y hiba 2 | E12: x hiba 2 | F12: Sebesség | G12: Y0
A13: =A2 -> COLOR_GREEN-DOT_2 | B13: =RANK(B2,B$2:B$10,1) -> 8 | C13: =RANK(C2,C$2:C$10,1) -> 3 | D13: 8 | E13: 2 | F13: =RANK(F2,F$2:F$10,0) -> 7 | G13: 1000
A14: COLOR_BROWN-DOT_2 | B14: =RANK(B3,B$2:B$10,1) -> 4 | C14: 1 | D14: 5 | E14: 4 | F14: =RANK(F3,F$2:F$10,0) -> 4 | G14: 1000
A15: COLOR_GREEN-DOT_1 | B15: 9 | C15: 1 | D15: 9 | E15: 1 | F15: 2 | G15: 1000
A16: COLOR_BROWN-DOT_1 | B16: 2 | C16: 7 | D16: 1 | E16: 5 | F16: 8 | G16: 1000
A17: COLOR_BLUE-DOT_3 | B17: 5 | C17: 9 | D17: 4 | E17: 9 | F17: 9 | G17: 1000
A18: COLOR_GREEN-DOT_3 | B18: 1 | C18: 8 | D18: 3 | E18: 7 | F18: 5 | G18: 1000
A19: COLOR_BLUE-DOT_1 | B19: 7 | C19: 5 | D19: 6 | E19: 5 | F19: 6 | G19: 1000
A20: COLOR_BLUE-DOT_2 | B20: 6 | C20: 6 | D20: 7 | E20: 3 | F20: 1 | G20: 1000
A21: COLOR_BROWN-DOT_3 | B21: 3 | C21: 4 | D21: 1 | E21: 8 | F21: 3 | G21: 1000
A23: lépcsők | B23: =B12 -> Y hiba 1 | C23: =C12 -> x hiba 1 | D23: y hiba 2 | E23: x hiba 2 | F23: Sebesség
A24: 1 | B24: 201.1287336 | C24: 207.1797015 | D24: 199.4493321 | E24: 210.562406 | F24: 207.1797203
A25: 2 | B25: 200.1287336 | C25: 206.1797015 | D25: 198.4493321 | E25: 209.562406 | F25: 206.1797203
A26: 3 | B26: 199.1287336 | C26: 205.1797015 | D26: 197.4493321 | E26: 203.5624176 | F26: 205.1797203
A27: 4 | B27: 198.1287336 | C27: 204.1797015 | D27: 196.4493321 | E27: 202.5624176 | F27: 204.1797203
A28: 5 | B28: 197.1287336 | C28: 203.1797015 | D28: 193.4493342 | E28: 201.5624176 | F28: 203.1797203
A29: 6 | B29: 196.1287336 | C29: 202.1797015 | D29: 192.4493342 | E29: 200.5624176 | F29: 202.1797203
A30: 7 | B30: 195.1287336 | C30: 201.1797015 | D30: 190.9493401 | E30: 199.5624176 | F30: 201.1797203
A31: 8 | B31: 194.1287336 | C31: 200.1797015 | D31: 189.9493401 | E31: 198.5624176 | F31: 200.1797203
A32: 9 | B32: 187.1287441 | C32: 199.1797015 | D32: 188.9493401 | E32: 197.5624176 | F32: 199.1797203
A33: visszatérés | B33: 2 | C33: 3 | D33: 4 | E33: 5 | F33: 6
A35: lépcsőtávolságok | B35: =B23 -> Y hiba 1 | C35: =C23 -> x hiba 1 | D35: y hiba 2 | E35: x hiba 2 | F35: Sebesség
A36: L1-L2 | B36: =B24-B25 -> 1 | C36: =C24-C25 -> 1 | D36: 1 | E36: 1 | F36: 1
A37: … | B37: =B25-B26 -> 1 | C37: 1 | D37: 1 | E37: 5.999988402 | F37: 1
A38: … | B38: 1 | C38: 1 | D38: 1 | E38: 1 | F38: 1
A39: … | B39: 1 | C39: 1 | D39: 2.999997903 | E39: 1 | F39: 1
A40: … | B40: 1 | C40: 1 | D40: 1 | E40: 1 | F40: 1
A41: … | B41: 1 | C41: 1 | D41: 1.499994167 | E41: 1 | F41: 1
A42: … | B42: 1 | C42: 1 | D42: 1 | E42: 1 | F42: 1
A43: L8-L9 | B43: 6.999989484 | C43: 1 | D43: 1 | E43: 1 | F43: 1 | I43: négyzetes hiba
I44: =SUMSQ(I46:I54) -> 221.5000001
A45: becslés | B45: =B12 -> Y hiba 1 | C45: =C12 -> x hiba 1 | D45: y hiba 2 | E45: x hiba 2 | F45: Sebesség | G45: Y0 | H45: Becslés | I45: hiba | J45: =G1 -> Kártyasorrend | K45: Sebesség-becslés
A46: =A13 -> COLOR_GREEN-DOT_2 | B46: =VLOOKUP(B13,$A$24:$F$32,B$33,0) -> 194.1287336 | C46: =VLOOKUP(C13,$A$24:$F$32,C$33,0) -> 205.1797015 | D46: 189.9493401 | E46: 209.562406 | F46: 201.1797203 | G46: 1000 | H46: =SUM(B46:F46) -> 999.9999015 | I46: =G46-H46 -> 9.853371091e-05 | J46: =G2 -> COLOR_GREEN-DOT_2 | K46: =VLOOKUP(J46,$A$46:$I$54,8,0) -> 999.9999015
A47: =A14 -> COLOR_BROWN-DOT_2 | B47: =VLOOKUP(B14,$A$24:$F$32,B$33,0) -> 198.1287336 | C47: 207.1797015 | D47: 193.4493342 | E47: 202.5624176 | F47: 204.1797203 | G47: 1000 | H47: =SUM(B47:F47) -> 1005.499907 | I47: =G47-H47 -> -5.499907232 | J47: COLOR_BROWN-DOT_1 | K47: =VLOOKUP(J47,$A$46:$I$54,8,0) -> 1002.499905
A48: COLOR_GREEN-DOT_1 | B48: 187.1287441 | C48: 207.1797015 | D48: 188.9493401 | E48: 210.562406 | F48: 206.1797203 | G48: 1000 | H48: 999.999912 | I48: 8.801737124e-05 | J48: COLOR_BLUE-DOT_1 | K48: 994.4999072
A49: COLOR_BROWN-DOT_1 | B49: 200.1287336 | C49: 201.1797015 | D49: 199.4493321 | E49: 201.5624176 | F49: 200.1797203 | G49: 1000 | H49: 1002.499905 | I49: -2.499905135 | J49: COLOR_BROWN-DOT_2 | K49: 1005.499907
A50: COLOR_BLUE-DOT_3 | B50: 197.1287336 | C50: 199.1797015 | D50: 196.4493321 | E50: 197.5624176 | F50: 199.1797203 | G50: 1000 | H50: 989.4999051 | I50: 10.50009486 | J50: COLOR_GREEN-DOT_1 | K50: 999.999912
A51: COLOR_GREEN-DOT_3 | B51: 201.1287336 | C51: 200.1797015 | D51: 197.4493321 | E51: 199.5624176 | F51: 203.1797203 | G51: 1000 | H51: 1001.499905 | I51: -1.499905135 | J51: COLOR_BLUE-DOT_3 | K51: 989.4999051
A52: COLOR_BLUE-DOT_1 | B52: 195.1287336 | C52: 203.1797015 | D52: 192.4493342 | E52: 201.5624176 | F52: 202.1797203 | G52: 1000 | H52: 994.4999072 | I52: 5.500092768 | J52: COLOR_BLUE-DOT_2 | K52: 999.9999131
A53: COLOR_BLUE-DOT_2 | B53: 196.1287336 | C53: 202.1797015 | D53: 190.9493401 | E53: 203.5624176 | F53: 207.1797203 | G53: 1000 | H53: 999.9999131 | I53: 8.693528002e-05 | J53: COLOR_GREEN-DOT_3 | K53: 1001.499905
A54: COLOR_BROWN-DOT_3 | B54: 199.1287336 | C54: 204.1797015 | D54: 199.4493321 | E54: 198.5624176 | F54: 205.1797203 | G54: 1000 | H54: 1006.499905 | I54: -6.499905135 | J54: COLOR_BROWN-DOT_3 | K54: 1006.499905

Sheet f3_a1_m
A1: element | B1: Y hiba 1 | C1: x hiba 1 | D1: y hiba 2 | E1: x hiba 2 | F1: Megtett út/ Időigény | G1: Kártyasorrend
A2: COLOR_GREEN-DOT_2 | B2: 27.03996826 | C2: 1049.761582 | D2: 153.758335 | E2: 2116 | F2: 0.9143080123 | G2: COLOR_BROWN-DOT_1
A3: COLOR_BROWN-DOT_2 | B3: 46.2400415 | C3: 100 | D3: 4 | E3: 174.2395166 | F3: 1.384877183 | G3: COLOR_BLUE-DOT_1
A4: COLOR_GREEN-DOT_1 | B4: 998.5603857 | C4: 595.3611914 | D4: 1156 | E4: 718.2409814 | F4: 1.392545168 | G4: COLOR_GREEN-DOT_1
A5: COLOR_BROWN-DOT_1 | B5: 174.2395166 | C5: 134.5594336 | D5: 12.96004395 | E5: 134.5601416 | F5: 1.49945692 | G5: COLOR_GREEN-DOT_2
A6: COLOR_BLUE-DOT_3 | B6: 84.64022461 | C6: 3180.962754 | D6: 213.1610693 | E6: 4382.441616 | F6: 1.38832053 | G6: COLOR_GREEN-DOT_3
A7: COLOR_GREEN-DOT_3 | B7: 998.5603857 | C7: 1.440175787 | D7: 595.3597021 | E7: 424.3589941 | F7: 1.328245605 | G7: COLOR_BLUE-DOT_2
A8: COLOR_BLUE-DOT_1 | B8: 484 | C8: 1831.838955 | D8: 201.6403467 | E8: 4251.041592 | F8: 1.27028917 | G8: COLOR_BLUE-DOT_3
A9: COLOR_BLUE-DOT_2 | B9: 1.440029297 | C9: 324 | D9: 0.3599707037 | E9: 0.1599951172 | F9: 2.486455657 | G9: COLOR_BROWN-DOT_2
A10: COLOR_BROWN-DOT_3 | B10: 12.95982422 | C10: 4044.956895 | D10: 676 | E10: 961 | F10: 1.652223585 | G10: COLOR_BROWN-DOT_3
A12: sorszámozás | B12: =B1 -> Y hiba 1 | C12: x hiba 1 | D12: y hiba 2 | E12: x hiba 2 | F12: Sebesség
A13: =A2 -> COLOR_GREEN-DOT_2 | B13: =RANK(B2,B$2:B$10,1) -> 3 | C13: =RANK(C2,C$2:C$10,1) -> 6 | D13: 4 | E13: 7 | F13: =INT(F2*1000) -> 914
A14: COLOR_BROWN-DOT_2 | B14: =RANK(B3,B$2:B$10,1) -> 4 | C14: 2 | D14: 2 | E14: 3 | F14: =INT(F3*1000) -> 1384
A15: COLOR_GREEN-DOT_1 | B15: 8 | C15: 5 | D15: 9 | E15: 5 | F15: 1392
A16: COLOR_BROWN-DOT_1 | B16: 6 | C16: 3 | D16: 3 | E16: 2 | F16: 1499
A17: COLOR_BLUE-DOT_3 | B17: 5 | C17: 8 | D17: 6 | E17: 9 | F17: 1388
A18: COLOR_GREEN-DOT_3 | B18: 8 | C18: 1 | D18: 7 | E18: 4 | F18: 1328
A19: COLOR_BLUE-DOT_1 | B19: 7 | C19: 7 | D19: 5 | E19: 8 | F19: 1270
A20: COLOR_BLUE-DOT_2 | B20: 1 | C20: 4 | D20: 1 | E20: 1 | F20: 2486
A21: COLOR_BROWN-DOT_3 | B21: 2 | C21: 9 | D21: 8 | E21: 6 | F21: 1652
A23: lépcsők | B23: =B12 -> Y hiba 1 | C23: =C12 -> x hiba 1 | D23: y hiba 2 | E23: x hiba 2
A24: 1 | B24: 665.6110663 | C24: 489.1663234 | D24: 665.6110022 | E24: 665.6110022
A25: 2 | B25: 485.0141115 | C25: 489.1663234 | D25: 334.9439297 | E25: 470.9695366
A26: 3 | B26: 203.9199313 | C26: 489.1663234 | D26: 334.9439297 | E26: 355.9695011
A27: 4 | B27: 203.9199313 | C27: 489.1663234 | D27: 321.8497008 | E27: 355.9695011
A28: 5 | B28: 203.9199313 | C28: 489.1663234 | D28: 321.8497008 | E28: 355.9695011
A29: 6 | B29: 203.9199313 | C29: 489.1663234 | D29: 321.8497008 | E29: 355.9695011
A30: 7 | B30: 203.9199313 | C30: 489.1663234 | D30: 321.8497008 | E30: 175.7304008
A31: 8 | B31: 193.0141567 | C31: 489.1663234 | D31: 321.8497008 | E31: 175.7304008
A32: 9 | B32: 193.0141567 | C32: 489.1663234 | D32: 321.8497008 | E32: 175.7304008
A33: visszatérés | B33: 2 | C33: 3 | D33: 4 | E33: 5
A35: lépcsőtávolságok | B35: =B23 -> Y hiba 1 | C35: =C23 -> x hiba 1 | D35: y hiba 2 | E35: x hiba 2
A36: L1-L2 | B36: =B24-B25 -> 180.5969548 | C36: =C24-C25 -> 0 | D36: 330.6670725 | E36: 194.6414656
A37: … | B37: =B25-B26 -> 281.0941802 | C37: 0 | D37: 0 | E37: 115.0000355
A38: … | B38: 0 | C38: 0 | D38: 13.09422891 | E38: 0
A39: … | B39: 0 | C39: 0 | D39: 0 | E39: 0
A40: … | B40: 0 | C40: 0 | D40: 0 | E40: 0
A41: … | B41: 0 | C41: 0 | D41: 0 | E41: 180.2391003
A42: … | B42: 10.90577468 | C42: 0 | D42: 0 | E42: 0
A43: L8-L9 | B43: 0 | C43: 0 | D43: 0 | E43: 0 | H43: négyzetes hiba
H44: =SUMSQ(H46:H54) -> 123826.6667
A45: becslés | B45: =B12 -> Y hiba 1 | C45: =C12 -> x hiba 1 | D45: y hiba 2 | E45: x hiba 2 | F45: Sebesség | G45: Becslés | H45: hiba | I45: =G1 -> Kártyasorrend | J45: Sebesség-becslés
A46: =A13 -> COLOR_GREEN-DOT_2 | B46: =VLOOKUP(B13,$A$24:$E$32,B$33,0) -> 203.9199313 | C46: =VLOOKUP(C13,$A$24:$E$32,C$33,0) -> 489.1663234 | D46: 321.8497008 | E46: 175.7304008 | F46: 914 | G46: =SUM(B46:E46) -> 1190.666356 | H46: =F46-G46 -> -276.6663563 | I46: =G2 -> COLOR_BROWN-DOT_1 | J46: =VLOOKUP(I46,$A$46:$H$54,8,0) -> 0.0002790115514
A47: =A14 -> COLOR_BROWN-DOT_2 | B47: =VLOOKUP(B14,$A$24:$E$32,B$33,0) -> 203.9199313 | C47: 489.1663234 | D47: 334.9439297 | E47: 355.9695011 | F47: 1384 | G47: =SUM(B47:E47) -> 1383.999685 | H47: =F47-G47 -> 0.0003145336195 | I47: COLOR_BLUE-DOT_1 | J47: =VLOOKUP(I47,$A$46:$H$54,8,0) -> 79.33364372
A48: COLOR_GREEN-DOT_1 | B48: 193.0141567 | C48: 489.1663234 | D48: 321.8497008 | E48: 355.9695011 | F48: 1392 | G48: 1359.999682 | H48: 32.00031812 | I48: COLOR_GREEN-DOT_1 | J48: 32.00031812
A49: COLOR_BROWN-DOT_1 | B49: 203.9199313 | C49: 489.1663234 | D49: 334.9439297 | E49: 470.9695366 | F49: 1499 | G49: 1498.999721 | H49: 0.0002790115514 | I49: COLOR_GREEN-DOT_2 | J49: -276.6663563
A50: COLOR_BLUE-DOT_3 | B50: 203.9199313 | C50: 489.1663234 | D50: 321.8497008 | E50: 175.7304008 | F50: 1388 | G50: 1190.666356 | H50: 197.3336437 | I50: COLOR_GREEN-DOT_3 | J50: -31.99968188
A51: COLOR_GREEN-DOT_3 | B51: 193.0141567 | C51: 489.1663234 | D51: 321.8497008 | E51: 355.9695011 | F51: 1328 | G51: 1359.999682 | H51: -31.99968188 | I51: COLOR_BLUE-DOT_2 | J51: 0.0006059255065
A52: COLOR_BLUE-DOT_1 | B52: 203.9199313 | C52: 489.1663234 | D52: 321.8497008 | E52: 175.7304008 | F52: 1270 | G52: 1190.666356 | H52: 79.33364372 | I52: COLOR_BLUE-DOT_3 | J52: 197.3336437
A53: COLOR_BLUE-DOT_2 | B53: 665.6110663 | C53: 489.1663234 | D53: 665.6110022 | E53: 665.6110022 | F53: 2486 | G53: 2485.999394 | H53: 0.0006059255065 | I53: COLOR_BROWN-DOT_2 | J53: 0.0003145336195
A54: COLOR_BROWN-DOT_3 | B54: 485.0141115 | C54: 489.1663234 | D54: 321.8497008 | E54: 355.9695011 | F54: 1652 | G54: 1651.999637 | H54: 0.0003632673809 | I54: COLOR_BROWN-DOT_3 | J54: 0.0003632673809

Sheet f3_a2_m
A1: element | B1: Y hiba 1 | C1: x hiba 1 | D1: y hiba 2 | E1: x hiba 2 | F1: Megtett út/ Időigény | G1: Kártyasorrend
A2: SVK-€01 | B2: 27.03996826 | C2: 268.9587988 | D2: 1521 | E2: 324 | F2: 0.7903971228 | G2: IRL-€02
A3: IRL-€01 | B3: 2043.039724 | C3: 416.1609961 | D3: 81 | E3: 1900.963193 | F3: 0.8259670927 | G3: IRL-€20
A4: SVK-€02 | B4: 1267.360435 | C4: 196 | D4: 3249 | E4: 1324.959556 | F4: 0.3153666141 | G4: IRL-€01
A5: IRL-€02 | B5: 84.64022461 | C5: 3271.841396 | D5: 4761 | E5: 268.9597998 | F5: 0.2850403901 | G5: SVK-€02
A6: SMR-€20 | B6: 519.840835 | C6: 3457.431387 | D6: 289 | E6: 10444.8425 | F6: 0.5279171303 | G6: SVK-€20
A7: SVK-€20 | B7: 4 | C7: 196 | D7: 190.4405054 | E7: 2724.841274 | F7: 0.5858226667 | G7: SMR-€01
A8: SMR-€02 | B8: 686.4406396 | C8: 46.23983398 | D8: 1780.84103 | E8: 2116 | F8: 1.174678842 | G8: SVK-€01
A9: SMR-€01 | B9: 3113.638638 | C9: 484 | D9: 25536.0361 | E9: 1764 | F9: 0.2190635254 | G9: SMR-€02
A10: IRL-€20 | B10: 9 | C10: 1.439882815 | D10: 2894.44197 | E10: 2401 | F10: 0.6457863657 | G10: SMR-€20
A12: sorszámozás | B12: =B1 -> Y hiba 1 | C12: x hiba 1 | D12: y hiba 2 | E12: x hiba 2 | F12: Sebesség
A13: =A2 -> SVK-€01 | B13: =RANK(B2,B$2:B$10,1) -> 3 | C13: =RANK(C2,C$2:C$10,1) -> 5 | D13: 4 | E13: 2 | F13: =INT(F2*1000) -> 790
A14: IRL-€01 | B14: =RANK(B3,B$2:B$10,1) -> 8 | C14: 6 | D14: 1 | E14: 5 | F14: =INT(F3*1000) -> 825
A15: SVK-€02 | B15: 7 | C15: 3 | D15: 7 | E15: 3 | F15: 315
A16: IRL-€02 | B16: 4 | C16: 8 | D16: 8 | E16: 1 | F16: 285
A17: SMR-€20 | B17: 5 | C17: 9 | D17: 3 | E17: 9 | F17: 527
A18: SVK-€20 | B18: 1 | C18: 3 | D18: 2 | E18: 8 | F18: 585
A19: SMR-€02 | B19: 6 | C19: 2 | D19: 5 | E19: 6 | F19: 1174
A20: SMR-€01 | B20: 9 | C20: 7 | D20: 9 | E20: 4 | F20: 219
A21: IRL-€20 | B21: 2 | C21: 1 | D21: 6 | E21: 7 | F21: 645
A23: lépcsők | B23: =B12 -> Y hiba 1 | C23: =C12 -> x hiba 1 | D23: y hiba 2 | E23: x hiba 2
A24: 1 | B24: 59.44215824 | C24: 427.9999619 | D24: 509.9999693 | E24: 225.557835
A25: 2 | B25: 59.44215824 | C25: 427.9999619 | D25: 488.5578315 | E25: 225.557835
A26: 3 | B26: 59.44215824 | C26: 37.00000206 | D26: 467.9999955 | E26: 219.000006
A27: 4 | B27: 59.44215824 | C27: 37.00000206 | D27: 467.9999955 | E27: 219.000006
A28: 5 | B28: 59.00000658 | C28: 37.00000206 | D28: 467.9999955 | E28: 219.000006
A29: 6 | B29: 59.00000658 | C29: 37.00000206 | D29: 54.16611984 | E29: 219.000006
A30: 7 | B30: 59.00000658 | C30: 0 | D30: 0 | E30: 103.3917649
A31: 8 | B31: 59.00000658 | C31: 0 | D31: 0 | E31: 0
A32: 9 | B32: 0 | C32: 0 | D32: 0 | E32: 0
A33: visszatérés | B33: 2 | C33: 3 | D33: 4 | E33: 5
A35: lépcsőtávolságok | B35: =B23 -> Y hiba 1 | C35: =C23 -> x hiba 1 | D35: y hiba 2 | E35: x hiba 2
A36: L1-L2 | B36: =B24-B25 -> 0 | C36: =C24-C25 -> 0 | D36: 21.44213779 | E36: 0
A37: … | B37: =B25-B26 -> 0 | C37: 390.9999598 | D37: 20.55783608 | E37: 6.55782896
A38: … | B38: 0 | C38: 0 | D38: 0 | E38: 0
A39: … | B39: 0.4421516599 | C39: 0 | D39: 6.252776075e-13 | E39: 0
A40: … | B40: 0 | C40: 0 | D40: 413.8338756 | E40: 0
A41: … | B41: 0 | C41: 37.00000206 | D41: 54.16611984 | E41: 115.6082411
A42: … | B42: 0 | C42: 0 | D42: 0 | E42: 103.3917649
A43: L8-L9 | B43: 59.00000658 | C43: 0 | D43: 0 | E43: 0 | H43: négyzetes hiba
H44: =SUMSQ(H46:H54) -> 1.636187601e-09
A45: becslés | B45: =B12 -> Y hiba 1 | C45: =C12 -> x hiba 1 | D45: y hiba 2 | E45: x hiba 2 | F45: Sebesség | G45: Becslés | H45: hiba | I45: =G1 -> Kártyasorrend | J45: Sebesség-becslés
A46: =A13 -> SVK-€01 | B46: =VLOOKUP(B13,$A$24:$E$32,B$33,0) -> 59.44215824 | C46: =VLOOKUP(C13,$A$24:$E$32,C$33,0) -> 37.00000206 | D46: 467.9999955 | E46: 225.557835 | F46: 790 | G46: =SUM(B46:E46) -> 789.9999908 | H46: =F46-G46 -> 9.242024703e-06 | I46: =G2 -> IRL-€02 | J46: =VLOOKUP(I46,$A$46:$H$54,8,0) -> 6.770160667e-06
A47: =A14 -> IRL-€01 | B47: =VLOOKUP(B14,$A$24:$E$32,B$33,0) -> 59.00000658 | C47: 37.00000206 | D47: 509.9999693 | E47: 219.000006 | F47: 825 | G47: =SUM(B47:E47) -> 824.999984 | H47: =F47-G47 -> 1.598503923e-05 | I47: IRL-€20 | J47: =VLOOKUP(I47,$A$46:$H$54,8,0) -> -4.887655109e-06
A48: SVK-€02 | B48: 59.00000658 | C48: 37.00000206 | D48: 0 | E48: 219.000006 | F48: 315 | G48: 315.0000147 | H48: -1.467293384e-05 | I48: IRL-€01 | J48: 1.598503923e-05
A49: IRL-€02 | B49: 59.44215824 | C49: 0 | D49: 0 | E49: 225.557835 | F49: 285 | G49: 284.9999932 | H49: 6.770160667e-06 | I49: SVK-€02 | J49: -1.467293384e-05
A50: SMR-€20 | B50: 59.00000658 | C50: 0 | D50: 467.9999955 | E50: 0 | F50: 527 | G50: 527.000002 | H50: -2.040806294e-06 | I50: SVK-€20 | J50: 8.150911299e-06
A51: SVK-€20 | B51: 59.44215824 | C51: 37.00000206 | D51: 488.5578315 | E51: 0 | F51: 585 | G51: 584.9999918 | H51: 8.150911299e-06 | I51: SMR-€01 | J51: -6.033285416e-06
A52: SMR-€02 | B52: 59.00000658 | C52: 427.9999619 | D52: 467.9999955 | E52: 219.000006 | F52: 1174 | G52: 1173.99997 | H52: 3.005376993e-05 | I52: SVK-€01 | J52: 9.242024703e-06
A53: SMR-€01 | B53: 0 | C53: 0 | D53: 0 | E53: 219.000006 | F53: 219 | G53: 219.000006 | H53: -6.033285416e-06 | I53: SMR-€02 | J53: 3.005376993e-05
A54: IRL-€20 | B54: 59.44215824 | C54: 427.9999619 | D54: 54.16611984 | E54: 103.3917649 | F54: 645 | G54: 645.0000049 | H54: -4.887655109e-06 | I54: SMR-€20 | J54: -2.040806294e-06

Sheet f3_a3_m
A1: element | B1: Y hiba 1 | C1: x hiba 1 | D1: y hiba 2 | E1: x hiba 2 | F1: Megtett út/ Időigény | G1: Kártyasorrend
A2: COLOR_GREEN-DOT_2 | B2: 484 | C2: 112.3594824 | D2: 1169.638748 | E2: 57.76009277 | F2: 0.5904344061 | G2: COLOR_GREEN-DOT_2
A3: COLOR_BROWN-DOT_2 | B3: 100 | C3: 43.55967774 | D3: 104.0396265 | E3: 219.040542 | F3: 0.8248197994 | G3: COLOR_BROWN-DOT_1
A4: COLOR_GREEN-DOT_1 | B4: 718.2417993 | C4: 43.55967774 | D4: 1489.965183 | E4: 27.03980957 | F4: 0.9575185606 | G4: COLOR_BLUE-DOT_1
A5: COLOR_BROWN-DOT_1 | B5: 4 | C5: 841 | D5: 4.839919434 | E5: 295.8393701 | F5: 0.526137948 | G5: COLOR_BROWN-DOT_2
A6: COLOR_BLUE-DOT_3 | B6: 174.2403223 | C6: 3433.957139 | D6: 81 | E6: 3364 | F6: 0.3814671998 | G6: COLOR_GREEN-DOT_1
A7: COLOR_GREEN-DOT_3 | B7: 1.440029297 | C7: 1089 | D7: 73.96010498 | E7: 519.8394434 | F7: 0.7186091378 | G7: COLOR_BLUE-DOT_3
A8: COLOR_BLUE-DOT_1 | B8: 324 | C8: 262.4403955 | D8: 376.3609473 | E8: 295.8393701 | F8: 0.6793050952 | G8: COLOR_BLUE-DOT_2
A9: COLOR_BLUE-DOT_2 | B9: 196 | C9: 408.0380273 | D9: 772.8393213 | E9: 196 | F9: 1.252626815 | G9: COLOR_GREEN-DOT_3
A10: COLOR_BROWN-DOT_3 | B10: 7.839931641 | C10: 179.5606543 | D10: 4.839919434 | E10: 900 | F10: 0.8751102223 | G10: COLOR_BROWN-DOT_3
A12: sorszámozás | B12: =B1 -> Y hiba 1 | C12: x hiba 1 | D12: y hiba 2 | E12: x hiba 2 | F12: Sebesség
A13: =A2 -> COLOR_GREEN-DOT_2 | B13: =RANK(B2,B$2:B$10,1) -> 8 | C13: =RANK(C2,C$2:C$10,1) -> 3 | D13: 8 | E13: 2 | F13: =INT(F2*1000) -> 590
A14: COLOR_BROWN-DOT_2 | B14: =RANK(B3,B$2:B$10,1) -> 4 | C14: 1 | D14: 5 | E14: 4 | F14: =INT(F3*1000) -> 824
A15: COLOR_GREEN-DOT_1 | B15: 9 | C15: 1 | D15: 9 | E15: 1 | F15: 957
A16: COLOR_BROWN-DOT_1 | B16: 2 | C16: 7 | D16: 1 | E16: 5 | F16: 526
A17: COLOR_BLUE-DOT_3 | B17: 5 | C17: 9 | D17: 4 | E17: 9 | F17: 381
A18: COLOR_GREEN-DOT_3 | B18: 1 | C18: 8 | D18: 3 | E18: 7 | F18: 718
A19: COLOR_BLUE-DOT_1 | B19: 7 | C19: 5 | D19: 6 | E19: 5 | F19: 679
A20: COLOR_BLUE-DOT_2 | B20: 6 | C20: 6 | D20: 7 | E20: 3 | F20: 1252
A21: COLOR_BROWN-DOT_3 | B21: 3 | C21: 4 | D21: 1 | E21: 8 | F21: 875
A23: lépcsők | B23: =B12 -> Y hiba 1 | C23: =C12 -> x hiba 1 | D23: y hiba 2 | E23: x hiba 2
A24: 1 | B24: 490.1181118 | C24: 348.9973679 | D24: 228.7445203 | E24: 608.0024803
A25: 2 | B25: 296.918746 | C25: 348.9973679 | D25: 227.5436671 | E25: 334.6697854
A26: 3 | B26: 296.918746 | C26: 348.9973679 | D26: 227.5436671 | E26: 334.6697854
A27: 4 | B27: 247.1222442 | C27: 348.9973679 | D27: 227.5436671 | E27: 0.3379996295
A28: 5 | B28: 247.1222442 | C28: 348.9973679 | D28: 227.5436671 | E28: 0.3379996295
A29: 6 | B29: 247.1222442 | C29: 348.9973679 | D29: 227.5436671 | E29: 0.3379996295
A30: 7 | B30: 102.1213497 | C30: 0 | D30: 227.5436671 | E30: 0.3379996295
A31: 8 | B31: 0 | C31: 0 | D31: 0 | E31: 0.3379996295
A32: 9 | B32: 0 | C32: 0 | D32: 0 | E32: 0
A33: visszatérés | B33: 2 | C33: 3 | D33: 4 | E33: 5
A35: lépcsőtávolságok | B35: =B23 -> Y hiba 1 | C35: =C23 -> x hiba 1 | D35: y hiba 2 | E35: x hiba 2
A36: L1-L2 | B36: =B24-B25 -> 193.1993658 | C36: =C24-C25 -> 0 | D36: 1.200853159 | E36: 273.3326949
A37: … | B37: =B25-B26 -> 0 | C37: 0 | D37: 0 | E37: 0
A38: … | B38: 49.79650179 | C38: 0 | D38: 0 | E38: 334.3317858
A39: … | B39: 0 | C39: 0 | D39: 0 | E39: 0
A40: … | B40: 0 | C40: 0 | D40: 0 | E40: 0
A41: … | B41: 145.0008944 | C41: 348.9973679 | D41: 0 | E41: 0
A42: … | B42: 102.1213497 | C42: 0 | D42: 227.5436671 | E42: 9.658940314e-15
A43: L8-L9 | B43: 0 | C43: 0 | D43: 0 | E43: 0.3379996295 | H43: négyzetes hiba
H44: =SUMSQ(H46:H54) -> 26320.33334
A45: becslés | B45: =B12 -> Y hiba 1 | C45: =C12 -> x hiba 1 | D45: y hiba 2 | E45: x hiba 2 | F45: Sebesség | G45: Becslés | H45: hiba | I45: =G1 -> Kártyasorrend | J45: Sebesség-becslés
A46: =A13 -> COLOR_GREEN-DOT_2 | B46: =VLOOKUP(B13,$A$24:$E$32,B$33,0) -> 0 | C46: =VLOOKUP(C13,$A$24:$E$32,C$33,0) -> 348.9973679 | D46: 0 | E46: 334.6697854 | F46: 590 | G46: =SUM(B46:E46) -> 683.6671533 | H46: =F46-G46 -> -93.66715334 | I46: =G2 -> COLOR_GREEN-DOT_2 | J46: =VLOOKUP(I46,$A$46:$H$54,8,0) -> -93.66715334
A47: =A14 -> COLOR_BROWN-DOT_2 | B47: =VLOOKUP(B14,$A$24:$E$32,B$33,0) -> 247.1222442 | C47: 348.9973679 | D47: 227.5436671 | E47: 0.3379996295 | F47: 824 | G47: =SUM(B47:E47) -> 824.0012788 | H47: =F47-G47 -> -0.001278835005 | I47: COLOR_BROWN-DOT_1 | J47: =VLOOKUP(I47,$A$46:$H$54,8,0) -> -0.001265843495
A48: COLOR_GREEN-DOT_1 | B48: 0 | C48: 348.9973679 | D48: 0 | E48: 608.0024803 | F48: 957 | G48: 956.9998482 | H48: 0.0001517751159 | I48: COLOR_BLUE-DOT_1 | J48: -0.0003844047378
A49: COLOR_BROWN-DOT_1 | B49: 296.918746 | C49: 0 | D49: 228.7445203 | E49: 0.3379996295 | F49: 526 | G49: 526.0012658 | H49: -0.001265843495 | I49: COLOR_BROWN-DOT_2 | J49: -0.001278835005
A50: COLOR_BLUE-DOT_3 | B50: 247.1222442 | C50: 0 | D50: 227.5436671 | E50: 0 | F50: 381 | G50: 474.6659113 | H50: -93.66591126 | I50: COLOR_GREEN-DOT_1 | J50: 0.0001517751159
A51: COLOR_GREEN-DOT_3 | B51: 490.1181118 | C51: 0 | D51: 227.5436671 | E51: 0.3379996295 | F51: 718 | G51: 717.9997785 | H51: 0.0002214902139 | I51: COLOR_BLUE-DOT_3 | J51: -93.66591126
A52: COLOR_BLUE-DOT_1 | B52: 102.1213497 | C52: 348.9973679 | D52: 227.5436671 | E52: 0.3379996295 | F52: 679 | G52: 679.0003844 | H52: -0.0003844047378 | I52: COLOR_BLUE-DOT_2 | J52: 93.6669354
A53: COLOR_BLUE-DOT_2 | B53: 247.1222442 | C53: 348.9973679 | D53: 227.5436671 | E53: 334.6697854 | F53: 1252 | G53: 1158.333065 | H53: 93.6669354 | I53: COLOR_GREEN-DOT_3 | J53: 0.0002214902139
A54: COLOR_BROWN-DOT_3 | B54: 296.918746 | C54: 348.9973679 | D54: 228.7445203 | E54: 0.3379996295 | F54: 875 | G54: 874.9986338 | H54: 0.001366215911 | I54: COLOR_BROWN-DOT_3 | J54: 0.001366215911

Sheet f4_a1_m
A1: element | B1: Y hiba 1 | C1: x hiba 1 | D1: y hiba 2 | E1: x hiba 2 | F1: Megtett út/ Időigény | G1: Kártyasorrend
A2: COLOR_GREEN-DOT_2 | B2: 27.03996826 | C2: 1049.761582 | D2: 153.758335 | E2: 2116 | F2: 0.9143080123 | G2: COLOR_BROWN-DOT_1
A3: COLOR_BROWN-DOT_2 | B3: 46.2400415 | C3: 100 | D3: 4 | E3: 174.2395166 | F3: 1.384877183 | G3: COLOR_BLUE-DOT_1
A4: COLOR_GREEN-DOT_1 | B4: 998.5603857 | C4: 595.3611914 | D4: 1156 | E4: 718.2409814 | F4: 1.392545168 | G4: COLOR_GREEN-DOT_1
A5: COLOR_BROWN-DOT_1 | B5: 174.2395166 | C5: 134.5594336 | D5: 12.96004395 | E5: 134.5601416 | F5: 1.49945692 | G5: COLOR_GREEN-DOT_2
A6: COLOR_BLUE-DOT_3 | B6: 84.64022461 | C6: 3180.962754 | D6: 213.1610693 | E6: 4382.441616 | F6: 1.38832053 | G6: COLOR_GREEN-DOT_3
A7: COLOR_GREEN-DOT_3 | B7: 998.5603857 | C7: 1.440175787 | D7: 595.3597021 | E7: 424.3589941 | F7: 1.328245605 | G7: COLOR_BLUE-DOT_2
A8: COLOR_BLUE-DOT_1 | B8: 484 | C8: 1831.838955 | D8: 201.6403467 | E8: 4251.041592 | F8: 1.27028917 | G8: COLOR_BLUE-DOT_3
A9: COLOR_BLUE-DOT_2 | B9: 1.440029297 | C9: 324 | D9: 0.3599707037 | E9: 0.1599951172 | F9: 2.486455657 | G9: COLOR_BROWN-DOT_2
A10: COLOR_BROWN-DOT_3 | B10: 12.95982422 | C10: 4044.956895 | D10: 676 | E10: 961 | F10: 1.652223585 | G10: COLOR_BROWN-DOT_3
A12: sorszámozás | B12: =B1 -> Y hiba 1 | C12: x hiba 1 | D12: y hiba 2 | E12: x hiba 2 | F12: Sebesség | G12: Y0
A13: =A2 -> COLOR_GREEN-DOT_2 | B13: =RANK(B2,B$2:B$10,1) -> 3 | C13: =RANK(C2,C$2:C$10,1) -> 6 | D13: 4 | E13: 7 | F13: =RANK(F2,F$2:F$10,0) -> 9 | G13: 1000
A14: COLOR_BROWN-DOT_2 | B14: =RANK(B3,B$2:B$10,1) -> 4 | C14: 2 | D14: 2 | E14: 3 | F14: =RANK(F3,F$2:F$10,0) -> 6 | G14: 1000
A15: COLOR_GREEN-DOT_1 | B15: 8 | C15: 5 | D15: 9 | E15: 5 | F15: 4 | G15: 1000
A16: COLOR_BROWN-DOT_1 | B16: 6 | C16: 3 | D16: 3 | E16: 2 | F16: 3 | G16: 1000
A17: COLOR_BLUE-DOT_3 | B17: 5 | C17: 8 | D17: 6 | E17: 9 | F17: 5 | G17: 1000
A18: COLOR_GREEN-DOT_3 | B18: 8 | C18: 1 | D18: 7 | E18: 4 | F18: 7 | G18: 1000
A19: COLOR_BLUE-DOT_1 | B19: 7 | C19: 7 | D19: 5 | E19: 8 | F19: 8 | G19: 1000
A20: COLOR_BLUE-DOT_2 | B20: 1 | C20: 4 | D20: 1 | E20: 1 | F20: 1 | G20: 1000
A21: COLOR_BROWN-DOT_3 | B21: 2 | C21: 9 | D21: 8 | E21: 6 | F21: 2 | G21: 1000
A23: lépcsők | B23: =B12 -> Y hiba 1 | C23: =C12 -> x hiba 1 | D23: y hiba 2 | E23: x hiba 2 | F23: Sebesség
A24: 1 | B24: 406.090895 | C24: 155.252489 | D24: 153.6183912 | E24: 153.002217 | F24: 154.035983
A25: 2 | B25: 405.090895 | C25: 151.8774828 | D25: 152.6183912 | E25: 152.002217 | F25: 153.035983
A26: 3 | B26: 404.090895 | C26: 150.8774828 | D26: 151.6183912 | E26: 151.002217 | F26: 152.035983
A27: 4 | B27: 403.090895 | C27: 149.8774828 | D27: 150.6183912 | E27: 150.002217 | F27: 151.035983
A28: 5 | B28: 402.090895 | C28: 148.8774828 | D28: 149.6183912 | E28: 149.002217 | F28: 150.035983
A29: 6 | B29: 401.090895 | C29: 147.8774828 | D29: 148.6183912 | E29: 148.002217 | F29: 149.035983
A30: 7 | B30: 400.090895 | C30: 146.8774828 | D30: 147.6183912 | E30: 147.002217 | F30: 148.035983
A31: 8 | B31: 399.090895 | C31: 145.8774828 | D31: 146.6183912 | E31: 146.002217 | F31: 147.035983
A32: 9 | B32: 0 | C32: 144.8774828 | D32: 145.6183912 | E32: 145.002217 | F32: 146.035983
A33: visszatérés | B33: 2 | C33: 3 | D33: 4 | E33: 5 | F33: 6
A35: lépcsőtávolságok | B35: =B23 -> Y hiba 1 | C35: =C23 -> x hiba 1 | D35: y hiba 2 | E35: x hiba 2 | F35: Sebesség
A36: L1-L2 | B36: =B24-B25 -> 1 | C36: =C24-C25 -> 3.375006135 | D36: 1 | E36: 1 | F36: 1
A37: … | B37: =B25-B26 -> 1 | C37: 1 | D37: 1 | E37: 1 | F37: 1
A38: … | B38: 1 | C38: 1 | D38: 1 | E38: 1 | F38: 1
A39: … | B39: 1 | C39: 1 | D39: 1 | E39: 1 | F39: 1
A40: … | B40: 1 | C40: 1 | D40: 1 | E40: 1 | F40: 1
A41: … | B41: 1 | C41: 1 | D41: 1 | E41: 1 | F41: 1
A42: … | B42: 1 | C42: 1 | D42: 1 | E42: 1 | F42: 1
A43: L8-L9 | B43: 399.090895 | C43: 1 | D43: 1 | E43: 1 | F43: 1 | I43: négyzetes hiba
I44: =SUMSQ(I46:I54) -> 635.875
A45: becslés | B45: =B12 -> Y hiba 1 | C45: =C12 -> x hiba 1 | D45: y hiba 2 | E45: x hiba 2 | F45: Sebesség | G45: Y0 | H45: Becslés | I45: hiba | J45: =G1 -> Kártyasorrend | K45: Sebesség-becslés
A46: =A13 -> COLOR_GREEN-DOT_2 | B46: =VLOOKUP(B13,$A$24:$F$32,B$33,0) -> 404.090895 | C46: =VLOOKUP(C13,$A$24:$F$32,C$33,0) -> 147.8774828 | D46: 150.6183912 | E46: 147.002217 | F46: 146.035983 | G46: 1000 | H46: =SUM(B46:F46) -> 995.624969 | I46: =G46-H46 -> 4.375030957 | J46: =G2 -> COLOR_BROWN-DOT_1 | K46: =VLOOKUP(J46,$A$46:$I$54,8,0) -> 1007.624969
A47: =A14 -> COLOR_BROWN-DOT_2 | B47: =VLOOKUP(B14,$A$24:$F$32,B$33,0) -> 403.090895 | C47: 151.8774828 | D47: 152.6183912 | E47: 151.002217 | F47: 149.035983 | G47: 1000 | H47: =SUM(B47:F47) -> 1007.624969 | I47: =G47-H47 -> -7.624969043 | J47: COLOR_BLUE-DOT_1 | K47: =VLOOKUP(J47,$A$46:$I$54,8,0) -> 989.624969
A48: COLOR_GREEN-DOT_1 | B48: 399.090895 | C48: 148.8774828 | D48: 145.6183912 | E48: 149.002217 | F48: 151.035983 | G48: 1000 | H48: 993.624969 | I48: 6.375030957 | J48: COLOR_GREEN-DOT_1 | K48: 993.624969
A49: COLOR_BROWN-DOT_1 | B49: 401.090895 | C49: 150.8774828 | D49: 151.6183912 | E49: 152.002217 | F49: 152.035983 | G49: 1000 | H49: 1007.624969 | I49: -7.624969043 | J49: COLOR_GREEN-DOT_2 | K49: 995.624969
A50: COLOR_BLUE-DOT_3 | B50: 402.090895 | C50: 145.8774828 | D50: 148.6183912 | E50: 145.002217 | F50: 150.035983 | G50: 1000 | H50: 991.624969 | I50: 8.375030957 | J50: COLOR_GREEN-DOT_3 | K50: 999.9999752
A51: COLOR_GREEN-DOT_3 | B51: 399.090895 | C51: 155.252489 | D51: 147.6183912 | E51: 150.002217 | F51: 148.035983 | G51: 1000 | H51: 999.9999752 | I51: 2.482219475e-05 | J51: COLOR_BLUE-DOT_2 | K51: 1016.624969
A52: COLOR_BLUE-DOT_1 | B52: 400.090895 | C52: 146.8774828 | D52: 149.6183912 | E52: 146.002217 | F52: 147.035983 | G52: 1000 | H52: 989.624969 | I52: 10.37503096 | J52: COLOR_BLUE-DOT_3 | K52: 991.624969
A53: COLOR_BLUE-DOT_2 | B53: 406.090895 | C53: 149.8774828 | D53: 153.6183912 | E53: 153.002217 | F53: 154.035983 | G53: 1000 | H53: 1016.624969 | I53: -16.62496904 | J53: COLOR_BROWN-DOT_2 | K53: 1007.624969
A54: COLOR_BROWN-DOT_3 | B54: 405.090895 | C54: 144.8774828 | D54: 146.6183912 | E54: 148.002217 | F54: 153.035983 | G54: 1000 | H54: 997.624969 | I54: 2.375030957 | J54: COLOR_BROWN-DOT_3 | K54: 997.624969

Sheet f4_a2_m
A1: element | B1: Y hiba 1 | C1: x hiba 1 | D1: y hiba 2 | E1: x hiba 2 | F1: Megtett út/ Időigény | G1: Kártyasorrend
A2: SVK-€01 | B2: 27.03996826 | C2: 268.9587988 | D2: 1521 | E2: 324 | F2: 0.7903971228 | G2: IRL-€02
A3: IRL-€01 | B3: 2043.039724 | C3: 416.1609961 | D3: 81 | E3: 1900.963193 | F3: 0.8259670927 | G3: IRL-€20
A4: SVK-€02 | B4: 1267.360435 | C4: 196 | D4: 3249 | E4: 1324.959556 | F4: 0.3153666141 | G4: IRL-€01
A5: IRL-€02 | B5: 84.64022461 | C5: 3271.841396 | D5: 4761 | E5: 268.9597998 | F5: 0.2850403901 | G5: SVK-€02
A6: SMR-€20 | B6: 519.840835 | C6: 3457.431387 | D6: 289 | E6: 10444.8425 | F6: 0.5279171303 | G6: SVK-€20
A7: SVK-€20 | B7: 4 | C7: 196 | D7: 190.4405054 | E7: 2724.841274 | F7: 0.5858226667 | G7: SMR-€01
A8: SMR-€02 | B8: 686.4406396 | C8: 46.23983398 | D8: 1780.84103 | E8: 2116 | F8: 1.174678842 | G8: SVK-€01
A9: SMR-€01 | B9: 3113.638638 | C9: 484 | D9: 25536.0361 | E9: 1764 | F9: 0.2190635254 | G9: SMR-€02
A10: IRL-€20 | B10: 9 | C10: 1.439882815 | D10: 2894.44197 | E10: 2401 | F10: 0.6457863657 | G10: SMR-€20
A12: sorszámozás | B12: =B1 -> Y hiba 1 | C12: x hiba 1 | D12: y hiba 2 | E12: x hiba 2 | F12: Sebesség | G12: Y0
A13: =A2 -> SVK-€01 | B13: =RANK(B2,B$2:B$10,1) -> 3 | C13: =RANK(C2,C$2:C$10,1) -> 5 | D13: 4 | E13: 2 | F13: =RANK(F2,F$2:F$10,0) -> 3 | G13: 1000
A14: IRL-€01 | B14: =RANK(B3,B$2:B$10,1) -> 8 | C14: 6 | D14: 1 | E14: 5 | F14: =RANK(F3,F$2:F$10,0) -> 2 | G14: 1000
A15: SVK-€02 | B15: 7 | C15: 3 | D15: 7 | E15: 3 | F15: 7 | G15: 1000
A16: IRL-€02 | B16: 4 | C16: 8 | D16: 8 | E16: 1 | F16: 8 | G16: 1000
A17: SMR-€20 | B17: 5 | C17: 9 | D17: 3 | E17: 9 | F17: 6 | G17: 1000
A18: SVK-€20 | B18: 1 | C18: 3 | D18: 2 | E18: 8 | F18: 5 | G18: 1000
A19: SMR-€02 | B19: 6 | C19: 2 | D19: 5 | E19: 6 | F19: 1 | G19: 1000
A20: SMR-€01 | B20: 9 | C20: 7 | D20: 9 | E20: 4 | F20: 9 | G20: 1000
A21: IRL-€20 | B21: 2 | C21: 1 | D21: 6 | E21: 7 | F21: 4 | G21: 1000
A23: lépcsők | B23: =B12 -> Y hiba 1 | C23: =C12 -> x hiba 1 | D23: y hiba 2 | E23: x hiba 2 | F23: Sebesség
A24: 1 | B24: 207.2846724 | C24: 198.4924991 | D24: 210.2811352 | E24: 204.9902811 | F24: 207.2846816
A25: 2 | B25: 206.2846724 | C25: 197.4924991 | D25: 209.2811352 | E25: 202.323613 | F25: 206.2846816
A26: 3 | B26: 205.2846724 | C26: 196.4924991 | D26: 208.2811352 | E26: 201.323613 | F26: 205.2846816
A27: 4 | B27: 204.2846724 | C27: 195.4924991 | D27: 202.9478025 | E27: 200.323613 | F27: 204.2846816
A28: 5 | B28: 203.2846724 | C28: 194.4924991 | D28: 201.9478025 | E28: 191.9902822 | F28: 203.2846816
A29: 6 | B29: 202.2846724 | C29: 193.4924991 | D29: 200.9478025 | E29: 190.9902822 | F29: 202.2846816
A30: 7 | B30: 201.2846724 | C30: 192.4924991 | D30: 199.9478025 | E30: 189.9902822 | F30: 201.2846816
A31: 8 | B31: 200.2846724 | C31: 191.4924991 | D31: 198.9478025 | E31: 188.9902822 | F31: 200.2846816
A32: 9 | B32: 199.2846724 | C32: 190.4924991 | D32: 197.9478025 | E32: 187.9902822 | F32: 199.2846816
A33: visszatérés | B33: 2 | C33: 3 | D33: 4 | E33: 5 | F33: 6
A35: lépcsőtávolságok | B35: =B23 -> Y hiba 1 | C35: =C23 -> x hiba 1 | D35: y hiba 2 | E35: x hiba 2 | F35: Sebesség
A36: L1-L2 | B36: =B24-B25 -> 1 | C36: =C24-C25 -> 1 | D36: 1 | E36: 2.666668105 | F36: 1
A37: … | B37: =B25-B26 -> 1 | C37: 1 | D37: 1 | E37: 1 | F37: 1
A38: … | B38: 1 | C38: 1 | D38: 5.333332666 | E38: 1 | F38: 1
A39: … | B39: 1 | C39: 1 | D39: 1 | E39: 8.333330864 | F39: 1
A40: … | B40: 1 | C40: 1 | D40: 1 | E40: 1 | F40: 1
A41: … | B41: 1 | C41: 1 | D41: 1 | E41: 1 | F41: 1
A42: … | B42: 1 | C42: 1 | D42: 1 | E42: 1 | F42: 1
A43: L8-L9 | B43: 1 | C43: 1 | D43: 1 | E43: 1 | F43: 1 | I43: négyzetes hiba
I44: =SUMSQ(I46:I54) -> 313.3333334
A45: becslés | B45: =B12 -> Y hiba 1 | C45: =C12 -> x hiba 1 | D45: y hiba 2 | E45: x hiba 2 | F45: Sebesség | G45: Y0 | H45: Becslés | I45: hiba | J45: =G1 -> Kártyasorrend | K45: Sebesség-becslés
A46: =A13 -> SVK-€01 | B46: =VLOOKUP(B13,$A$24:$F$32,B$33,0) -> 205.2846724 | C46: =VLOOKUP(C13,$A$24:$F$32,C$33,0) -> 194.4924991 | D46: 202.9478025 | E46: 202.323613 | F46: 205.2846816 | G46: 1000 | H46: =SUM(B46:F46) -> 1010.333269 | I46: =G46-H46 -> -10.33326867 | J46: =G2 -> IRL-€02 | K46: =VLOOKUP(J46,$A$46:$I$54,8,0) -> 999.9999368
A47: =A14 -> IRL-€01 | B47: =VLOOKUP(B14,$A$24:$F$32,B$33,0) -> 200.2846724 | C47: 193.4924991 | D47: 210.2811352 | E47: 191.9902822 | F47: 206.2846816 | G47: 1000 | H47: =SUM(B47:F47) -> 1002.33327 | I47: =G47-H47 -> -2.333270477 | J47: IRL-€20 | K47: =VLOOKUP(J47,$A$46:$I$54,8,0) -> 999.9999378
A48: SVK-€02 | B48: 201.2846724 | C48: 196.4924991 | D48: 199.9478025 | E48: 201.323613 | F48: 201.2846816 | G48: 1000 | H48: 1000.333269 | I48: -0.3332686748 | J48: IRL-€01 | K48: 1002.33327
A49: IRL-€02 | B49: 204.2846724 | C49: 191.4924991 | D49: 198.9478025 | E49: 204.9902811 | F49: 200.2846816 | G49: 1000 | H49: 999.9999368 | I49: 6.321994545e-05 | J49: SVK-€02 | K49: 1000.333269
A50: SMR-€20 | B50: 203.2846724 | C50: 190.4924991 | D50: 208.2811352 | E50: 187.9902822 | F50: 202.2846816 | G50: 1000 | H50: 992.3332705 | I50: 7.666729523 | J50: SVK-€20 | K50: 1005.33327
A51: SVK-€20 | B51: 207.2846724 | C51: 196.4924991 | D51: 209.2811352 | E51: 188.9902822 | F51: 203.2846816 | G51: 1000 | H51: 1005.33327 | I51: -5.333270477 | J51: SMR-€01 | K51: 989.3332687
A52: SMR-€02 | B52: 202.2846724 | C52: 197.4924991 | D52: 201.9478025 | E52: 190.9902822 | F52: 207.2846816 | G52: 1000 | H52: 999.9999378 | I52: 6.218887984e-05 | J52: SVK-€01 | K52: 1010.333269
A53: SMR-€01 | B53: 199.2846724 | C53: 192.4924991 | D53: 197.9478025 | E53: 200.323613 | F53: 199.2846816 | G53: 1000 | H53: 989.3332687 | I53: 10.66673133 | J53: SMR-€02 | K53: 999.9999378
A54: IRL-€20 | B54: 206.2846724 | C54: 198.4924991 | D54: 200.9478025 | E54: 189.9902822 | F54: 204.2846816 | G54: 1000 | H54: 999.9999378 | I54: 6.218887984e-05 | J54: SMR-€20 | K54: 992.3332705

Sheet f4_a3_m
A1: element | B1: Y hiba 1 | C1: x hiba 1 | D1: y hiba 2 | E1: x hiba 2 | F1: Megtett út/ Időigény | G1: Kártyasorrend
A2: COLOR_GREEN-DOT_2 | B2: 484 | C2: 112.3594824 | D2: 1169.638748 | E2: 57.76009277 | F2: 0.5904344061 | G2: COLOR_GREEN-DOT_2
A3: COLOR_BROWN-DOT_2 | B3: 100 | C3: 43.55967774 | D3: 104.0396265 | E3: 219.040542 | F3: 0.8248197994 | G3: COLOR_BROWN-DOT_1
A4: COLOR_GREEN-DOT_1 | B4: 718.2417993 | C4: 43.55967774 | D4: 1489.965183 | E4: 27.03980957 | F4: 0.9575185606 | G4: COLOR_BLUE-DOT_1
A5: COLOR_BROWN-DOT_1 | B5: 4 | C5: 841 | D5: 4.839919434 | E5: 295.8393701 | F5: 0.526137948 | G5: COLOR_BROWN-DOT_2
A6: COLOR_BLUE-DOT_3 | B6: 174.2403223 | C6: 3433.957139 | D6: 81 | E6: 3364 | F6: 0.3814671998 | G6: COLOR_GREEN-DOT_1
A7: COLOR_GREEN-DOT_3 | B7: 1.440029297 | C7: 1089 | D7: 73.96010498 | E7: 519.8394434 | F7: 0.7186091378 | G7: COLOR_BLUE-DOT_3
A8: COLOR_BLUE-DOT_1 | B8: 324 | C8: 262.4403955 | D8: 376.3609473 | E8: 295.8393701 | F8: 0.6793050952 | G8: COLOR_BLUE-DOT_2
A9: COLOR_BLUE-DOT_2 | B9: 196 | C9: 408.0380273 | D9: 772.8393213 | E9: 196 | F9: 1.252626815 | G9: COLOR_GREEN-DOT_3
A10: COLOR_BROWN-DOT_3 | B10: 7.839931641 | C10: 179.5606543 | D10: 4.839919434 | E10: 900 | F10: 0.8751102223 | G10: COLOR_BROWN-DOT_3
A12: sorszámozás | B12: =B1 -> Y hiba 1 | C12: x hiba 1 | D12: y hiba 2 | E12: x hiba 2 | F12: Sebesség | G12: Y0
A13: =A2 -> COLOR_GREEN-DOT_2 | B13: =RANK(B2,B$2:B$10,1) -> 8 | C13: =RANK(C2,C$2:C$10,1) -> 3 | D13: 8 | E13: 2 | F13: =RANK(F2,F$2:F$10,0) -> 7 | G13: 1000
A14: COLOR_BROWN-DOT_2 | B14: =RANK(B3,B$2:B$10,1) -> 4 | C14: 1 | D14: 5 | E14: 4 | F14: =RANK(F3,F$2:F$10,0) -> 4 | G14: 1000
A15: COLOR_GREEN-DOT_1 | B15: 9 | C15: 1 | D15: 9 | E15: 1 | F15: 2 | G15: 1000
A16: COLOR_BROWN-DOT_1 | B16: 2 | C16: 7 | D16: 1 | E16: 5 | F16: 8 | G16: 1000
A17: COLOR_BLUE-DOT_3 | B17: 5 | C17: 9 | D17: 4 | E17: 9 | F17: 9 | G17: 1000
A18: COLOR_GREEN-DOT_3 | B18: 1 | C18: 8 | D18: 3 | E18: 7 | F18: 5 | G18: 1000
A19: COLOR_BLUE-DOT_1 | B19: 7 | C19: 5 | D19: 6 | E19: 5 | F19: 6 | G19: 1000
A20: COLOR_BLUE-DOT_2 | B20: 6 | C20: 6 | D20: 7 | E20: 3 | F20: 1 | G20: 1000
A21: COLOR_BROWN-DOT_3 | B21: 3 | C21: 4 | D21: 1 | E21: 8 | F21: 3 | G21: 1000
A23: lépcsők | B23: =B12 -> Y hiba 1 | C23: =C12 -> x hiba 1 | D23: y hiba 2 | E23: x hiba 2 | F23: Sebesség
A24: 1 | B24: 201.1287336 | C24: 207.1797015 | D24: 199.4493321 | E24: 210.562406 | F24: 207.1797203
A25: 2 | B25: 200.1287336 | C25: 206.1797015 | D25: 198.4493321 | E25: 209.562406 | F25: 206.1797203
A26: 3 | B26: 199.1287336 | C26: 205.1797015 | D26: 197.4493321 | E26: 203.5624176 | F26: 205.1797203
A27: 4 | B27: 198.1287336 | C27: 204.1797015 | D27: 196.4493321 | E27: 202.5624176 | F27: 204.1797203
A28: 5 | B28: 197.1287336 | C28: 203.1797015 | D28: 193.4493342 | E28: 201.5624176 | F28: 203.1797203
A29: 6 | B29: 196.1287336 | C29: 202.1797015 | D29: 192.4493342 | E29: 200.5624176 | F29: 202.1797203
A30: 7 | B30: 195.1287336 | C30: 201.1797015 | D30: 190.9493401 | E30: 199.5624176 | F30: 201.1797203
A31: 8 | B31: 194.1287336 | C31: 200.1797015 | D31: 189.9493401 | E31: 198.5624176 | F31: 200.1797203
A32: 9 | B32: 187.1287441 | C32: 199.1797015 | D32: 188.9493401 | E32: 197.5624176 | F32: 199.1797203
A33: visszatérés | B33: 2 | C33: 3 | D33: 4 | E33: 5 | F33: 6
A35: lépcsőtávolságok | B35: =B23 -> Y hiba 1 | C35: =C23 -> x hiba 1 | D35: y hiba 2 | E35: x hiba 2 | F35: Sebesség
A36: L1-L2 | B36: =B24-B25 -> 1 | C36: =C24-C25 -> 1 | D36: 1 | E36: 1 | F36: 1
A37: … | B37: =B25-B26 -> 1 | C37: 1 | D37: 1 | E37: 5.999988402 | F37: 1
A38: … | B38: 1 | C38: 1 | D38: 1 | E38: 1 | F38: 1
A39: … | B39: 1 | C39: 1 | D39: 2.999997903 | E39: 1 | F39: 1
A40: … | B40: 1 | C40: 1 | D40: 1 | E40: 1 | F40: 1
A41: … | B41: 1 | C41: 1 | D41: 1.499994167 | E41: 1 | F41: 1
A42: … | B42: 1 | C42: 1 | D42: 1 | E42: 1 | F42: 1
A43: L8-L9 | B43: 6.999989484 | C43: 1 | D43: 1 | E43: 1 | F43: 1 | I43: négyzetes hiba
I44: =SUMSQ(I46:I54) -> 221.5000001
A45: becslés | B45: =B12 -> Y hiba 1 | C45: =C12 -> x hiba 1 | D45: y hiba 2 | E45: x hiba 2 | F45: Sebesség | G45: Y0 | H45: Becslés | I45: hiba | J45: =G1 -> Kártyasorrend | K45: Sebesség-becslés
A46: =A13 -> COLOR_GREEN-DOT_2 | B46: =VLOOKUP(B13,$A$24:$F$32,B$33,0) -> 194.1287336 | C46: =VLOOKUP(C13,$A$24:$F$32,C$33,0) -> 205.1797015 | D46: 189.9493401 | E46: 209.562406 | F46: 201.1797203 | G46: 1000 | H46: =SUM(B46:F46) -> 999.9999015 | I46: =G46-H46 -> 9.853371091e-05 | J46: =G2 -> COLOR_GREEN-DOT_2 | K46: =VLOOKUP(J46,$A$46:$I$54,8,0) -> 999.9999015
A47: =A14 -> COLOR_BROWN-DOT_2 | B47: =VLOOKUP(B14,$A$24:$F$32,B$33,0) -> 198.1287336 | C47: 207.1797015 | D47: 193.4493342 | E47: 202.5624176 | F47: 204.1797203 | G47: 1000 | H47: =SUM(B47:F47) -> 1005.499907 | I47: =G47-H47 -> -5.499907232 | J47: COLOR_BROWN-DOT_1 | K47: =VLOOKUP(J47,$A$46:$I$54,8,0) -> 1002.499905
A48: COLOR_GREEN-DOT_1 | B48: 187.1287441 | C48: 207.1797015 | D48: 188.9493401 | E48: 210.562406 | F48: 206.1797203 | G48: 1000 | H48: 999.999912 | I48: 8.801737124e-05 | J48: COLOR_BLUE-DOT_1 | K48: 994.4999072
A49: COLOR_BROWN-DOT_1 | B49: 200.1287336 | C49: 201.1797015 | D49: 199.4493321 | E49: 201.5624176 | F49: 200.1797203 | G49: 1000 | H49: 1002.499905 | I49: -2.499905135 | J49: COLOR_BROWN-DOT_2 | K49: 1005.499907
A50: COLOR_BLUE-DOT_3 | B50: 197.1287336 | C50: 199.1797015 | D50: 196.4493321 | E50: 197.5624176 | F50: 199.1797203 | G50: 1000 | H50: 989.4999051 | I50: 10.50009486 | J50: COLOR_GREEN-DOT_1 | K50: 999.999912
A51: COLOR_GREEN-DOT_3 | B51: 201.1287336 | C51: 200.1797015 | D51: 197.4493321 | E51: 199.5624176 | F51: 203.1797203 | G51: 1000 | H51: 1001.499905 | I51: -1.499905135 | J51: COLOR_BLUE-DOT_3 | K51: 989.4999051
A52: COLOR_BLUE-DOT_1 | B52: 195.1287336 | C52: 203.1797015 | D52: 192.4493342 | E52: 201.5624176 | F52: 202.1797203 | G52: 1000 | H52: 994.4999072 | I52: 5.500092768 | J52: COLOR_BLUE-DOT_2 | K52: 999.9999131
A53: COLOR_BLUE-DOT_2 | B53: 196.1287336 | C53: 202.1797015 | D53: 190.9493401 | E53: 203.5624176 | F53: 207.1797203 | G53: 1000 | H53: 999.9999131 | I53: 8.693528002e-05 | J53: COLOR_GREEN-DOT_3 | K53: 1001.499905
A54: COLOR_BROWN-DOT_3 | B54: 199.1287336 | C54: 204.1797015 | D54: 199.4493321 | E54: 198.5624176 | F54: 205.1797203 | G54: 1000 | H54: 1006.499905 | I54: -6.499905135 | J54: COLOR_BROWN-DOT_3 | K54: 1006.499905
